[Event "*** Titled Tuesday Blitz"]
[Site "Chess.com"]
[Date "2018.01.02"]
[Round "6"]
[White "Konavets"]
[Black "RoelandPruijssers"]
[Result "0-1"]
[WhiteElo "2730"]
[BlackElo "2537"]
[TimeControl "180+2"]
[EndTime "14:22:48 PST"]
[Termination "RoelandPruijssers won by resignation"]

1. e4 {[%clk 0:03:01.9]} 1... c5 {[%clk 0:02:56.6]} 2. Nf3 {[%clk 0:03:03]} 2...
d6 {[%clk 0:02:55.9]} 3. d4 {[%clk 0:03:04.3]} 3... cxd4 {[%clk 0:02:57.8]} 4.
Nxd4 {[%clk 0:03:06]} 4... Nf6 {[%clk 0:02:54.2]} 5. Nc3 {[%clk 0:03:07.9]} 5...
Nc6 {[%clk 0:02:55.8]} 6. Bg5 {[%clk 0:03:06.4]} 6... Bd7 {[%clk 0:02:57.3]} 7.
Qd2 {[%clk 0:03:07.2]} 7... Rc8 {[%clk 0:02:54.1]} 8. O-O-O {[%clk 0:03:07.9]}
8... Nxd4 {[%clk 0:02:54.7]} 9. Qxd4 {[%clk 0:03:09.8]} 9... Qa5 {[%clk
0:02:56.1]} 10. f4 {[%clk 0:03:09]} 10... Rxc3 {[%clk 0:02:53.8]} 11. Bxf6
{[%clk 0:03:10.3]} 11... Rc8 {[%clk 0:01:36.3]} 12. Bxg7 {[%clk 0:03:09.7]}
12... Qc7 {[%clk 0:01:36.9]} 13. Bc4 {[%clk 0:01:50.8]} 13... e5 {[%clk
0:01:20.5]} 14. Qd5 {[%clk 0:01:50.2]} 14... Bc6 {[%clk 0:01:16.2]} 15. Qxf7+
{[%clk 0:01:50.9]} 15... Qxf7 {[%clk 0:01:18.1]} 16. Bxf7+ {[%clk 0:01:51]}
16... Kxf7 {[%clk 0:01:20]} 17. Bxh8 {[%clk 0:01:52.4]} 17... Bh6 {[%clk
0:01:01.8]} 18. g3 {[%clk 0:01:53.1]} 18... Rxh8 {[%clk 0:01:01.9]} 19. Rxd6
{[%clk 0:01:53.6]} 19... Bf8 {[%clk 0:01:00.9]} 20. Rd2 {[%clk 0:01:51.9]} 20...
exf4 {[%clk 0:00:57.6]} 21. Rf1 {[%clk 0:01:52.7]} 21... Ke6 {[%clk 0:00:53.5]}
22. gxf4 {[%clk 0:01:43.5]} 22... Bxe4 {[%clk 0:00:53.8]} 23. f5+ {[%clk
0:01:44.8]} 23... Kf7 {[%clk 0:00:42]} 24. Rd4 {[%clk 0:01:27.3]} 24... Bh6+
{[%clk 0:00:39.9]} 25. Kb1 {[%clk 0:01:27.6]} 25... Bc6 {[%clk 0:00:39.6]} 26.
Rd6 {[%clk 0:01:25.2]} 26... Bg5 {[%clk 0:00:38.6]} 27. Re1 {[%clk 0:01:19.8]}
27... Rg8 {[%clk 0:00:33]} 28. b4 {[%clk 0:01:12.6]} 28... Be7 {[%clk
0:00:29.7]} 29. Rh6 {[%clk 0:01:13.5]} 29... Bxb4 {[%clk 0:00:30.7]} 30. Rxh7+
{[%clk 0:01:14.1]} 30... Kf6 {[%clk 0:00:27.8]} 31. Rf1 {[%clk 0:01:15.5]} 31...
Rg2 {[%clk 0:00:21.8]} 32. Rh6+ {[%clk 0:01:16]} 32... Kf7 {[%clk 0:00:22.1]}
33. f6 {[%clk 0:01:16]} 33... Be4 {[%clk 0:00:21.1]} 34. Kb2 {[%clk 0:00:51.1]}
34... Bxc2 {[%clk 0:00:20.5]} 35. Rc1 {[%clk 0:00:46.6]} 35... Be4+ {[%clk
0:00:16.7]} 36. Kb3 {[%clk 0:00:46.5]} 36... Bd6 {[%clk 0:00:17.1]} 37. a3
{[%clk 0:00:35.7]} 37... Bf4 {[%clk 0:00:16.9]} 38. Rh4 {[%clk 0:00:29.4]} 38...
Bd5+ {[%clk 0:00:17.6]} 39. Rc4 {[%clk 0:00:30.4]} 39... Bg5 {[%clk 0:00:17.6]}
40. Rd4 {[%clk 0:00:30.1]} 40... Bxc4+ {[%clk 0:00:18.1]} 41. Kxc4 {[%clk
0:00:32]} 41... Rb2 {[%clk 0:00:17.1]} 42. Rd7+ {[%clk 0:00:29.4]} 42... Kxf6
{[%clk 0:00:17.9]} 43. a4 {[%clk 0:00:30.8]} 43... Be3 {[%clk 0:00:17.1]} 44. a5
{[%clk 0:00:31.5]} 44... Rb1 {[%clk 0:00:15.8]} 45. h4 {[%clk 0:00:31.9]} 45...
Kg6 {[%clk 0:00:16.6]} 46. Re7 {[%clk 0:00:32.5]} 46... Bf2 {[%clk 0:00:17.7]}
47. Rd7 {[%clk 0:00:27.6]} 47... b5+ {[%clk 0:00:18.8]} 48. axb6 {[%clk
0:00:25.5]} 48... Bxb6 {[%clk 0:00:19.2]} 49. Rd5 {[%clk 0:00:24.2]} 49... Rh1
{[%clk 0:00:20.2]} 50. Kb5 {[%clk 0:00:24.2]} 50... Rxh4 {[%clk 0:00:21.2]} 51.
Rd6+ {[%clk 0:00:24.7]} 51... Kf5 {[%clk 0:00:21.8]} 52. Rd1 {[%clk 0:00:26.6]}
52... Re4 {[%clk 0:00:22.3]} 53. Ka6 {[%clk 0:00:24.7]} 53... Ke5 {[%clk
0:00:22.7]} 54. Kb5 {[%clk 0:00:25.8]} 54... Rd4 {[%clk 0:00:23.7]} 55. Re1+
{[%clk 0:00:27.3]} 55... Kd5 {[%clk 0:00:25.1]} 56. Rh1 {[%clk 0:00:29.2]} 56...
Rd2 {[%clk 0:00:26.2]} 57. Rh5+ {[%clk 0:00:30.2]} 57... Kd6 {[%clk 0:00:27.2]}
58. Ka6 {[%clk 0:00:31.6]} 58... Kc7 {[%clk 0:00:27.9]} 59. Rh7+ {[%clk
0:00:32.1]} 59... Rd7 {[%clk 0:00:29.5]} 60. Rh6 {[%clk 0:00:30.5]} 60... Bd4
{[%clk 0:00:30]} 61. Rh4 {[%clk 0:00:27.3]} 61... Rd6+ {[%clk 0:00:31]} 62. Kb5
{[%clk 0:00:29]} 62... a6+ {[%clk 0:00:31.4]} 63. Ka4 {[%clk 0:00:30.4]} 63...
Kb6 {[%clk 0:00:31.7]} 64. Rh7 {[%clk 0:00:28.8]} 64... Bc5 {[%clk 0:00:32.6]}
65. Rh2 {[%clk 0:00:29.4]} 65... Rd4+ {[%clk 0:00:33.7]} 66. Kb3 {[%clk
0:00:30.8]} 66... a5 {[%clk 0:00:34.8]} 67. Ka2 {[%clk 0:00:32.4]} 67... Kb5
{[%clk 0:00:36.1]} 68. Rb2+ {[%clk 0:00:33]} 68... Rb4 {[%clk 0:00:37.3]} 69.
Rh2 {[%clk 0:00:32.9]} 69... a4 {[%clk 0:00:38.5]} 70. Rh8 {[%clk 0:00:33.7]}
70... Rf4 {[%clk 0:00:39.9]} 71. Rb8+ {[%clk 0:00:34.7]} 71... Bb6 {[%clk
0:00:41.1]} 72. Ka3 {[%clk 0:00:34.4]} 72... Rf3+ {[%clk 0:00:42.1]} 73. Ka2
{[%clk 0:00:35.7]} 73... Ka5 {[%clk 0:00:42.8]} 74. Kb2 {[%clk 0:00:36]} 74...
Rb3+ {[%clk 0:00:42.5]} 75. Ka2 {[%clk 0:00:36.9]} 75... Rf3 {[%clk 0:00:43.6]}
76. Kb2 {[%clk 0:00:38.1]} 76... Bd4+ {[%clk 0:00:44.7]} 77. Ka2 {[%clk
0:00:39.4]} 77... Rf2+ {[%clk 0:00:45.5]} 78. Kb1 {[%clk 0:00:40.4]} 78... a3
{[%clk 0:00:46.7]} 79. Ra8+ {[%clk 0:00:40.5]} 79... Kb4 {[%clk 0:00:48]} 80.
Rb8+ {[%clk 0:00:41.8]} 80... Kc4 {[%clk 0:00:48.1]} 81. Ra8 {[%clk 0:00:43.1]}
81... Bc5 {[%clk 0:00:48.1]} 82. Rc8 {[%clk 0:00:35.8]} 82... Kb3 {[%clk
0:00:46.2]} 0-1

[Event "*** Titled Tuesday Blitz"]
[Site "Chess.com"]
[Date "2018.01.02"]
[Round "6"]
[White "Maitreia"]
[Black "DagurR"]
[Result "1-0"]
[WhiteElo "2548"]
[BlackElo "2318"]
[TimeControl "180+2"]
[EndTime "14:23:09 PST"]
[Termination "Maitreia won by resignation"]

1. c4 {[%clk 0:03:01.9]} 1... f5 {[%clk 0:03:00.2]} 2. g3 {[%clk 0:03:03.3]}
2... Nf6 {[%clk 0:03:01.5]} 3. Bg2 {[%clk 0:03:04.8]} 3... g6 {[%clk 0:03:03.3]}
4. Nc3 {[%clk 0:03:06.4]} 4... Bg7 {[%clk 0:03:05.1]} 5. Nf3 {[%clk 0:03:08.1]}
5... O-O {[%clk 0:03:06.9]} 6. O-O {[%clk 0:03:09.7]} 6... d6 {[%clk 0:03:08.5]}
7. d3 {[%clk 0:03:11.2]} 7... e5 {[%clk 0:03:05.8]} 8. Rb1 {[%clk 0:03:12.5]}
8... a5 {[%clk 0:03:05.2]} 9. a3 {[%clk 0:03:13.6]} 9... h6 {[%clk 0:03:05.9]}
10. b4 {[%clk 0:03:15]} 10... axb4 {[%clk 0:03:07.6]} 11. axb4 {[%clk
0:03:16.9]} 11... g5 {[%clk 0:03:09.3]} 12. Qb3 {[%clk 0:03:15.9]} 12... Kh8
{[%clk 0:03:09.8]} 13. Bb2 {[%clk 0:03:16.1]} 13... Nc6 {[%clk 0:03:03.9]} 14.
b5 {[%clk 0:03:17]} 14... Ne7 {[%clk 0:03:05.1]} 15. Ra1 {[%clk 0:03:17.9]}
15... Rb8 {[%clk 0:03:00.1]} 16. Nd2 {[%clk 0:03:18.2]} 16... Qe8 {[%clk
0:02:48.3]} 17. Ba3 {[%clk 0:03:08.5]} 17... Be6 {[%clk 0:02:42.3]} 18. b6
{[%clk 0:03:08.4]} 18... Qd7 {[%clk 0:02:32.6]} 19. bxc7 {[%clk 0:03:08.6]}
19... Qxc7 {[%clk 0:02:34.5]} 20. Nb5 {[%clk 0:03:09.4]} 20... Qd8 {[%clk
0:02:34.4]} 21. Bxd6 {[%clk 0:03:09.3]} 21... Rc8 {[%clk 0:02:28.4]} 22. Bxe5
{[%clk 0:03:08.8]} 22... Nc6 {[%clk 0:02:29.2]} 23. Bc3 {[%clk 0:03:02.4]} 23...
Bg8 {[%clk 0:02:30.6]} 24. Qb2 {[%clk 0:03:00]} 24... Re8 {[%clk 0:02:32.1]} 25.
Rfe1 {[%clk 0:02:53.7]} 25... Qe7 {[%clk 0:02:33.4]} 26. Nf3 {[%clk 0:02:49.1]}
26... Kh7 {[%clk 0:02:31.7]} 27. Na7 {[%clk 0:02:48.6]} 27... Rb8 {[%clk
0:02:29.5]} 28. Nxc6 {[%clk 0:02:38.6]} 28... bxc6 {[%clk 0:02:31.4]} 29. Qa3
{[%clk 0:02:40.1]} 29... c5 {[%clk 0:02:27.7]} 30. Ne5 {[%clk 0:02:35.1]} 30...
Qd6 {[%clk 0:02:12.2]} 31. Nf3 {[%clk 0:02:14.4]} 31... f4 {[%clk 0:01:44]} 32.
Rab1 {[%clk 0:02:11.1]} 32... Rxb1 {[%clk 0:01:41.8]} 33. Rxb1 {[%clk 0:02:13]}
33... Rxe2 {[%clk 0:01:42.5]} 34. Bf1 {[%clk 0:01:56.5]} 34... Re7 {[%clk
0:01:34]} 35. Re1 {[%clk 0:01:48.9]} 35... Rxe1 {[%clk 0:00:53.6]} 36. Nxe1
{[%clk 0:01:50.8]} 36... Ng4 {[%clk 0:00:48.8]} 37. Bxg7 {[%clk 0:01:48.6]}
37... Kxg7 {[%clk 0:00:50.7]} 38. Qc3+ {[%clk 0:01:47.6]} 38... Kg6 {[%clk
0:00:44.4]} 39. Bg2 {[%clk 0:01:45.3]} 39... Nf6 {[%clk 0:00:29.5]} 40. Nf3
{[%clk 0:01:42.1]} 40... Be6 {[%clk 0:00:19.8]} 41. d4 {[%clk 0:01:34]} 41...
cxd4 {[%clk 0:00:20.2]} 42. Nxd4 {[%clk 0:01:35.4]} 42... Bd7 {[%clk 0:00:17.8]}
43. c5 {[%clk 0:01:35.4]} 43... Qa6 {[%clk 0:00:18.6]} 44. c6 {[%clk 0:01:30.7]}
44... Bc8 {[%clk 0:00:20]} 45. Bf1 {[%clk 0:01:26]} 45... Qa2 {[%clk 0:00:20]}
46. Qd3+ {[%clk 0:01:18.9]} 46... Kf7 {[%clk 0:00:20.7]} 47. Nf5 {[%clk
0:01:12.2]} 47... Bxf5 {[%clk 0:00:17.5]} 48. Qxf5 {[%clk 0:01:14.1]} 48... Qa7
{[%clk 0:00:15.9]} 49. gxf4 {[%clk 0:01:10.3]} 49... gxf4 {[%clk 0:00:17.8]} 50.
Qxf4 {[%clk 0:01:12.2]} 50... Ke6 {[%clk 0:00:18]} 51. Qxh6 {[%clk 0:01:10.5]}
51... Qd4 {[%clk 0:00:18.9]} 52. Qe3+ {[%clk 0:01:10.4]} 52... Qxe3 {[%clk
0:00:20.4]} 53. fxe3 {[%clk 0:01:12.3]} 53... Kd6 {[%clk 0:00:22]} 54. Bb5
{[%clk 0:01:06.1]} 54... Nd5 {[%clk 0:00:18.6]} 55. Kf2 {[%clk 0:01:02.1]} 55...
Nc3 {[%clk 0:00:19.9]} 56. Bc4 {[%clk 0:00:37.7]} 56... Kxc6 {[%clk 0:00:20.5]}
57. Kf3 {[%clk 0:00:39.2]} 57... Kd6 {[%clk 0:00:21.5]} 58. Kf4 {[%clk
0:00:38.9]} 58... Na4 {[%clk 0:00:19.2]} 59. e4 {[%clk 0:00:38.4]} 59... Nb6
{[%clk 0:00:20.4]} 60. e5+ {[%clk 0:00:39.4]} 60... Ke7 {[%clk 0:00:21.3]} 61.
Bb3 {[%clk 0:00:40.4]} 61... Nd7 {[%clk 0:00:22.6]} 62. Kf5 {[%clk 0:00:41.4]}
62... Nc5 {[%clk 0:00:23.8]} 63. Bd5 {[%clk 0:00:41.5]} 63... Nd3 {[%clk
0:00:24.9]} 64. e6 {[%clk 0:00:41.6]} 64... Nc5 {[%clk 0:00:23.9]} 65. Kg6
{[%clk 0:00:42.6]} 65... Nd3 {[%clk 0:00:20.8]} 66. Kg5 {[%clk 0:00:38.9]} 66...
Nb4 {[%clk 0:00:11.6]} 67. Bb3 {[%clk 0:00:34.6]} 67... Nd3 {[%clk 0:00:10.6]}
68. h4 {[%clk 0:00:33.6]} 68... Nc5 {[%clk 0:00:12.1]} 69. Bd5 {[%clk
0:00:33.3]} 69... Na6 {[%clk 0:00:09.4]} 70. Kg6 {[%clk 0:00:32.8]} 70... Nc7
{[%clk 0:00:11.1]} 71. Bc4 {[%clk 0:00:33.8]} 71... Kf8 {[%clk 0:00:11.7]} 72.
h5 {[%clk 0:00:27.2]} 72... Kg8 {[%clk 0:00:13.1]} 73. e7+ {[%clk 0:00:26.1]}
73... Kh8 {[%clk 0:00:14.6]} 74. Bf7 {[%clk 0:00:19]} 74... Ne8 {[%clk
0:00:05.4]} 75. Bxe8 {[%clk 0:00:20]} 75... Kg8 {[%clk 0:00:07]} 76. Bf7+ {[%clk
0:00:21.1]} 1-0

[Event "*** Titled Tuesday Blitz"]
[Site "Chess.com"]
[Date "2018.01.02"]
[Round "6"]
[White "aquiles88"]
[Black "Big_Fishy"]
[Result "1/2-1/2"]
[WhiteElo "2057"]
[BlackElo "2304"]
[TimeControl "180+2"]
[EndTime "14:23:30 PST"]
[Termination "Game drawn by agreement"]

1. g3 {[%clk 0:02:57.8]} 1... Nf6 {[%clk 0:02:41.7]} 2. Bg2 {[%clk 0:02:58.5]}
2... g6 {[%clk 0:02:41.9]} 3. e4 {[%clk 0:02:58.9]} 3... d6 {[%clk 0:02:42]} 4.
d4 {[%clk 0:02:59.6]} 4... Bg7 {[%clk 0:02:42.8]} 5. Nc3 {[%clk 0:03:00.3]} 5...
O-O {[%clk 0:02:43]} 6. Nge2 {[%clk 0:03:00.6]} 6... e5 {[%clk 0:02:44.1]} 7. h3
{[%clk 0:03:00.9]} 7... Nc6 {[%clk 0:02:44.7]} 8. Be3 {[%clk 0:03:00.4]} 8...
exd4 {[%clk 0:02:41.1]} 9. Nxd4 {[%clk 0:03:00.6]} 9... Re8 {[%clk 0:02:42.3]}
10. O-O {[%clk 0:02:54.2]} 10... Bd7 {[%clk 0:02:41.8]} 11. f4 {[%clk
0:02:50.6]} 11... a6 {[%clk 0:02:39.7]} 12. a4 {[%clk 0:02:50.4]} 12... Nxd4
{[%clk 0:02:33]} 13. Bxd4 {[%clk 0:02:50.6]} 13... c5 {[%clk 0:02:34.2]} 14. Bf2
{[%clk 0:02:45.9]} 14... Bc6 {[%clk 0:02:35]} 15. Re1 {[%clk 0:02:44.5]} 15...
Qc7 {[%clk 0:02:33.6]} 16. Qd2 {[%clk 0:02:39.4]} 16... Rad8 {[%clk 0:02:29.5]}
17. Rad1 {[%clk 0:02:39.6]} 17... b5 {[%clk 0:02:30.1]} 18. axb5 {[%clk
0:02:40]} 18... axb5 {[%clk 0:02:31]} 19. b3 {[%clk 0:02:38.9]} 19... b4 {[%clk
0:02:29.5]} 20. Nd5 {[%clk 0:02:39]} 20... Nxd5 {[%clk 0:02:08.3]} 21. exd5
{[%clk 0:02:38]} 21... Bd7 {[%clk 0:02:06.8]} 22. Rxe8+ {[%clk 0:02:35.8]} 22...
Rxe8 {[%clk 0:02:07.7]} 23. Re1 {[%clk 0:02:36.4]} 23... Rxe1+ {[%clk
0:01:53.1]} 24. Qxe1 {[%clk 0:02:33.4]} 24... h5 {[%clk 0:01:46.8]} 25. Qe7
{[%clk 0:02:24.4]} 25... Bf8 {[%clk 0:01:45.5]} 26. Qe3 {[%clk 0:02:13.1]} 26...
Bf5 {[%clk 0:01:44]} 27. Qd2 {[%clk 0:02:08.4]} 27... Bg7 {[%clk 0:01:42.2]} 28.
Kh2 {[%clk 0:02:08.2]} 28... Qa5 {[%clk 0:01:38.5]} 29. Bf3 {[%clk 0:02:03.6]}
29... Qa2 {[%clk 0:01:37.4]} 30. Bd1 {[%clk 0:02:00.4]} 30... Qa1 {[%clk
0:01:24.8]} 31. g4 {[%clk 0:01:52]} 31... hxg4 {[%clk 0:01:22.8]} 32. hxg4
{[%clk 0:01:52.5]} 32... Be4 {[%clk 0:01:19.9]} 33. Kg3 {[%clk 0:01:43]} 33...
Bd4 {[%clk 0:01:10.2]} 34. Bxd4 {[%clk 0:01:39.3]} 34... Qxd4 {[%clk 0:01:10.9]}
35. Qxd4 {[%clk 0:01:39]} 35... cxd4 {[%clk 0:01:12.3]} 36. Kf2 {[%clk
0:01:34.5]} 36... f5 {[%clk 0:01:03.5]} 37. gxf5 {[%clk 0:01:32.2]} 37... gxf5
{[%clk 0:01:01.7]} 38. Ke1 {[%clk 0:01:23.8]} 38... Bxd5 {[%clk 0:00:58.7]} 39.
Kd2 {[%clk 0:01:24.7]} 39... Be4 {[%clk 0:00:59.8]} 40. Bh5 {[%clk 0:01:14.5]}
40... Kg7 {[%clk 0:00:59.9]} 41. Be2 {[%clk 0:01:14.9]} 41... Kf6 {[%clk
0:00:59.5]} 42. Bc4 {[%clk 0:01:13.5]} 42... Ke7 {[%clk 0:00:59.2]} 43. Be2
{[%clk 0:01:13.6]} 43... d5 {[%clk 0:00:59.7]} 44. Bb5 {[%clk 0:01:12.8]} 44...
Kd6 {[%clk 0:00:59.2]} 45. Be2 {[%clk 0:01:13.4]} 45... Kc5 {[%clk 0:00:57.6]}
46. Ba6 {[%clk 0:01:13.5]} 46... Kd6 {[%clk 0:00:49.4]} 47. Be2 {[%clk
0:01:13.8]} 47... Ke6 {[%clk 0:00:49.8]} 48. Bd1 {[%clk 0:01:12.1]} 48... Kd6
{[%clk 0:00:42.6]} 49. Be2 {[%clk 0:01:12.6]} 49... Kc5 {[%clk 0:00:42.1]} 50.
Ba6 {[%clk 0:01:13.2]} 50... d3 {[%clk 0:00:40.6]} 51. cxd3 {[%clk 0:01:03.7]}
51... Bg2 {[%clk 0:00:41.2]} 52. Ke3 {[%clk 0:00:58.8]} 52... d4+ {[%clk
0:00:41.3]} 53. Kd2 {[%clk 0:00:55.2]} 53... Bd5 {[%clk 0:00:39.4]} 54. Bc4
{[%clk 0:00:42.8]} 54... Bf3 {[%clk 0:00:37.6]} 55. Be6 {[%clk 0:00:41.4]} 55...
Bg4 {[%clk 0:00:38.1]} 56. Bc4 {[%clk 0:00:41.7]} 56... Kd6 {[%clk 0:00:39.2]}
57. Bf7 {[%clk 0:00:42.4]} 57... Ke7 {[%clk 0:00:40.4]} 58. Bc4 {[%clk
0:00:42.5]} 58... Kf6 {[%clk 0:00:41.8]} 59. Ke1 {[%clk 0:00:42.4]} 59... Kg6
{[%clk 0:00:42.6]} 60. Kf2 {[%clk 0:00:42.9]} 60... Bd1 {[%clk 0:00:40.8]} 61.
Ke1 {[%clk 0:00:43.2]} 61... Bg4 {[%clk 0:00:40]} 62. Kf2 {[%clk 0:00:44.4]}
62... Kh5 {[%clk 0:00:38.1]} 63. Kg3 {[%clk 0:00:45.1]} 63... Bd1 {[%clk
0:00:39]} 64. Bd5 {[%clk 0:00:45.9]} 64... Bc2 {[%clk 0:00:39.2]} 65. Bc4 {[%clk
0:00:45.5]} 65... Bd1 {[%clk 0:00:39.8]} 66. Bd5 {[%clk 0:00:45.5]} 66... Be2
{[%clk 0:00:40.8]} 67. Bc4 {[%clk 0:00:45.6]} 67... Bg4 {[%clk 0:00:38.4]} 68.
Bd5 {[%clk 0:00:45.9]} 68... Bd1 {[%clk 0:00:37.7]} 69. Bc4 {[%clk 0:00:46.3]}
69... Bc2 {[%clk 0:00:38.6]} 70. Kh3 {[%clk 0:00:45.9]} 70... Kh6 {[%clk
0:00:36.3]} 71. Kh4 {[%clk 0:00:45.5]} 71... Bd1 {[%clk 0:00:37.2]} 72. Bd5
{[%clk 0:00:45.6]} 72... Bg4 {[%clk 0:00:37]} 73. Be6 {[%clk 0:00:45.5]} 73...
Kg6 {[%clk 0:00:37.2]} 74. Bc4 {[%clk 0:00:44.4]} 74... Bd1 {[%clk 0:00:34.3]}
75. Bd5 {[%clk 0:00:43.9]} 75... Be2 {[%clk 0:00:33.7]} 76. Bc4 {[%clk
0:00:44.6]} 76... Bf3 {[%clk 0:00:35.4]} 77. Kg3 {[%clk 0:00:44.6]} 77... Bd1
{[%clk 0:00:36.1]} 78. Kh4 {[%clk 0:00:45.3]} 78... Bc2 {[%clk 0:00:36.6]} 79.
Kg3 {[%clk 0:00:44.9]} 79... Kf6 {[%clk 0:00:28.7]} 80. Kh4 {[%clk 0:00:44.5]}
80... Bd1 {[%clk 0:00:29.3]} 1/2-1/2

[Event "*** Titled Tuesday Blitz"]
[Site "Chess.com"]
[Date "2018.01.02"]
[Round "6"]
[White "maciek_92"]
[Black "tigra"]
[Result "0-1"]
[WhiteElo "2553"]
[BlackElo "2695"]
[TimeControl "180+2"]
[EndTime "14:24:48 PST"]
[Termination "tigra won on time"]

1. c4 {[%clk 0:03:01.9]} 1... Nf6 {[%clk 0:03:00.1]} 2. g3 {[%clk 0:03:01.8]}
2... e5 {[%clk 0:03:00.2]} 3. Bg2 {[%clk 0:03:02.9]} 3... c6 {[%clk 0:03:01.7]}
4. Nf3 {[%clk 0:03:02.4]} 4... e4 {[%clk 0:03:02.4]} 5. Nd4 {[%clk 0:03:03.5]}
5... d5 {[%clk 0:03:03.4]} 6. cxd5 {[%clk 0:03:04.6]} 6... Qxd5 {[%clk
0:03:03.7]} 7. Nc2 {[%clk 0:03:04.2]} 7... Qh5 {[%clk 0:03:00.7]} 8. h3 {[%clk
0:03:05.4]} 8... Bc5 {[%clk 0:02:59.6]} 9. Nc3 {[%clk 0:02:55.1]} 9... Qg6
{[%clk 0:02:57.4]} 10. Ne3 {[%clk 0:02:48.5]} 10... O-O {[%clk 0:02:48.8]} 11.
Qc2 {[%clk 0:02:37.7]} 11... Re8 {[%clk 0:02:47.8]} 12. O-O {[%clk 0:02:20]}
12... Bb6 {[%clk 0:02:36.5]} 13. b3 {[%clk 0:02:13.6]} 13... h5 {[%clk
0:02:32.6]} 14. Bb2 {[%clk 0:02:03.3]} 14... Nbd7 {[%clk 0:02:32]} 15. Rad1
{[%clk 0:01:56]} 15... Nf8 {[%clk 0:02:27.2]} 16. Ba3 {[%clk 0:01:32.5]} 16...
N8h7 {[%clk 0:02:26.4]} 17. Bd6 {[%clk 0:01:28.7]} 17... Ng5 {[%clk 0:02:26.5]}
18. Kh2 {[%clk 0:01:29.1]} 18... h4 {[%clk 0:02:05.5]} 19. gxh4 {[%clk
0:01:22.6]} 19... Ngh7 {[%clk 0:01:23.1]} 20. Nc4 {[%clk 0:01:06.7]} 20... Bf5
{[%clk 0:01:15.9]} 21. e3 {[%clk 0:00:51.7]} 21... Rad8 {[%clk 0:01:08.7]} 22.
Bg3 {[%clk 0:00:47.1]} 22... Nh5 {[%clk 0:01:08]} 23. Nxb6 {[%clk 0:00:47.8]}
23... axb6 {[%clk 0:01:05.9]} 24. Ne2 {[%clk 0:00:48.2]} 24... N7f6 {[%clk
0:00:56.3]} 25. Rg1 {[%clk 0:00:40.6]} 25... Nd5 {[%clk 0:00:55.2]} 26. a3
{[%clk 0:00:40]} 26... Qf6 {[%clk 0:00:54.6]} 27. Nc3 {[%clk 0:00:28.5]} 27...
Qe7 {[%clk 0:00:50.2]} 28. b4 {[%clk 0:00:27.1]} 28... g6 {[%clk 0:00:45.7]} 29.
Ne2 {[%clk 0:00:27]} 29... Kh7 {[%clk 0:00:45.5]} 30. Qb2 {[%clk 0:00:25.3]}
30... Ra8 {[%clk 0:00:45.6]} 31. Rc1 {[%clk 0:00:24.6]} 31... Ra7 {[%clk
0:00:45.6]} 32. Nd4 {[%clk 0:00:24.5]} 32... Bd7 {[%clk 0:00:42.8]} 33. Ra1
{[%clk 0:00:23.8]} 33... Rea8 {[%clk 0:00:42.2]} 34. Ne2 {[%clk 0:00:22.3]}
34... f5 {[%clk 0:00:41.5]} 35. Qe5 {[%clk 0:00:11.3]} 35... Nxg3 {[%clk
0:00:39.8]} 36. Qxe7+ {[%clk 0:00:11]} 36... Nxe7 {[%clk 0:00:40.5]} 37. Kxg3
{[%clk 0:00:12.5]} 37... Rxa3 {[%clk 0:00:41.6]} 38. Rxa3 {[%clk 0:00:13.3]}
38... Rxa3 {[%clk 0:00:43.5]} 39. Kf4 {[%clk 0:00:14.8]} 39... Rd3 {[%clk
0:00:42.7]} 40. Ke5 {[%clk 0:00:15.1]} 40... Kg7 {[%clk 0:00:42.1]} 41. Nd4
{[%clk 0:00:13.7]} 41... g5 {[%clk 0:00:42.3]} 42. hxg5 {[%clk 0:00:13.7]} 42...
Ng6+ {[%clk 0:00:42.9]} 43. Kd6 {[%clk 0:00:14.5]} 43... Be8 {[%clk 0:00:43.4]}
44. Kc7 {[%clk 0:00:15.5]} 44... c5 {[%clk 0:00:43.7]} 45. bxc5 {[%clk
0:00:17.2]} 45... bxc5 {[%clk 0:00:44.5]} 46. Nxf5+ {[%clk 0:00:18.8]} 46... Kf8
{[%clk 0:00:44.8]} 47. Bxe4 {[%clk 0:00:20.1]} 47... Rxd2 {[%clk 0:00:43.8]} 48.
f4 {[%clk 0:00:21.4]} 48... Rd7+ {[%clk 0:00:41.7]} 49. Kb6 {[%clk 0:00:22.4]}
49... c4 {[%clk 0:00:42.8]} 50. h4 {[%clk 0:00:23.5]} 50... Rh7 {[%clk
0:00:38.7]} 51. Nd6 {[%clk 0:00:18]} 51... Re7 {[%clk 0:00:39.2]} 52. h5 {[%clk
0:00:16.6]} 52... Re6 {[%clk 0:00:39.4]} 53. Kc5 {[%clk 0:00:15.8]} 53... Ne7
{[%clk 0:00:35.5]} 54. Rd1 {[%clk 0:00:12]} 54... c3 {[%clk 0:00:34.6]} 55. h6
{[%clk 0:00:11.6]} 55... b6+ {[%clk 0:00:33.9]} 56. Kxb6 {[%clk 0:00:11.7]}
56... Nc8+ {[%clk 0:00:33.7]} 57. Kc7 {[%clk 0:00:12.7]} 57... Nxd6 {[%clk
0:00:35.6]} 58. Rxd6 {[%clk 0:00:06.9]} 58... Rxe4 {[%clk 0:00:36]} 59. g6
{[%clk 0:00:07.5]} 59... Bxg6 {[%clk 0:00:33.7]} 60. Rxg6 {[%clk 0:00:07.9]}
60... Rc4+ {[%clk 0:00:32.8]} 61. Kd7 {[%clk 0:00:07.5]} 61... c2 {[%clk
0:00:31.6]} 62. h7 {[%clk 0:00:08.8]} 62... Rc7+ {[%clk 0:00:32.2]} 63. Kxc7
{[%clk 0:00:07.2]} 63... c1=Q+ {[%clk 0:00:32]} 64. Kd7 {[%clk 0:00:05.9]} 64...
Qd2+ {[%clk 0:00:32.4]} 65. Rd6 {[%clk 0:00:04.3]} 65... Qc3 {[%clk 0:00:32.4]}
66. Ke6 {[%clk 0:00:04.6]} 66... Qxe3+ {[%clk 0:00:30.8]} 67. Kf5 {[%clk
0:00:05.4]} 67... Qh3+ {[%clk 0:00:28.2]} 68. Kg6 {[%clk 0:00:06.7]} 68... Qg4+
{[%clk 0:00:29.2]} 69. Kf6 {[%clk 0:00:05.9]} 69... Qxf4+ {[%clk 0:00:29]} 70.
Ke6 {[%clk 0:00:07.5]} 70... Qh6+ {[%clk 0:00:28]} 71. Ke5 {[%clk 0:00:05.3]}
71... Qxh7 {[%clk 0:00:28.5]} 72. Re6 {[%clk 0:00:05.6]} 72... Qh4 {[%clk
0:00:27.2]} 73. Rf6+ {[%clk 0:00:05.9]} 73... Ke7 {[%clk 0:00:28.1]} 74. Re6+
{[%clk 0:00:07.4]} 74... Kf7 {[%clk 0:00:29.4]} 75. Rd6 {[%clk 0:00:08.2]} 75...
Qg5+ {[%clk 0:00:28.6]} 76. Kd4 {[%clk 0:00:08.7]} 76... Ke7 {[%clk 0:00:29.5]}
77. Rd5 {[%clk 0:00:09.8]} 77... Qf4+ {[%clk 0:00:30.3]} 78. Kc5 {[%clk
0:00:11]} 78... Ke6 {[%clk 0:00:31.3]} 79. Rd4 {[%clk 0:00:10.3]} 79... Qf2
{[%clk 0:00:30.8]} 80. Kc4 {[%clk 0:00:11.1]} 80... Ke5 {[%clk 0:00:26.6]} 81.
Rd3 {[%clk 0:00:10.1]} 81... Qf1 {[%clk 0:00:18.4]} 82. Kc3 {[%clk 0:00:10.3]}
82... Ke4 {[%clk 0:00:19.2]} 83. Rd2 {[%clk 0:00:06.5]} 83... Ke3 {[%clk
0:00:18.9]} 84. Rc2 {[%clk 0:00:02.5]} 84... Qb1 {[%clk 0:00:17.6]} 85. Rb2
{[%clk 0:00:02.8]} 85... Qd3+ {[%clk 0:00:17.6]} 86. Kb4 {[%clk 0:00:03.7]}
86... Kd4 {[%clk 0:00:19]} 87. Rb3 {[%clk 0:00:04.7]} 87... Qc2 {[%clk
0:00:16.7]} 88. Ka3 {[%clk 0:00:05.7]} 88... Qc1+ {[%clk 0:00:14.3]} 89. Ka2
{[%clk 0:00:06.3]} 89... Qd2+ {[%clk 0:00:14.1]} 90. Ka3 {[%clk 0:00:06.4]}
90... Kc4 {[%clk 0:00:14.2]} 0-1